﻿Unique ID,Headline,Start Date,Start Time,Venue Name,Event Cost,Tags (genre),"Categories
(type of event)",Real Description,Link to more info,Link to book cover image,Status of Event Post
937,"Lamar Odom celebrates ""Darkness To Light""",6/6/2019,7:00 PM,Barnes &amp; Noble - The Grove,Purchase Required,"June 2019,Sports,Memoir",Discussion and Signing,"Two-time NBA champion and 13-year veteran Lamar Odom shares his memoir ""Darkness to Light"" at Barnes & Noble at the Grove. This book explores who Lamar is beyond his fame for being a member of both the storied Los Angeles Lakers and the ubiquitous Kardashian empire.",https://stores.barnesandnoble.com/event/9780062030557-0,https://prodimage.images-bn.com/pimages/9781948836081_p0_v1_s600x595.jpg,Pending Review
969,"""The Shrieking Garden"" book release party",6/7/2019,8:00 PM,Stories Books and Cafe,Free,"June 2019,Short Story Collections",Book Launch,"Come out to Stories Books and Cafe for the launch of the new Ephemerol Night Terrors anthology release, ""The Shrieking Garden."" The book is a collection of short stories, essays, poems, and illustrations regarding the delicate subject of childhood trauma. Featuring contributions by an array of Los Angeles artists including Actually Huizenga, Kris Kidd, Christopher Zeischegg, LaBanna Babalon, Rhianna Martinez Yates aka Skuzi, and more. Curated by Chad Fjerstad.

Live readings by:
CHAD FJERSTAD
KRIS KIDD
and more TBA",https://storiesla.com/?q=h.calevents,https://storiesla.com/i/8034753/events_images/event_image_6599.jpg,Pending Review
974,"Daniel Nieblas discusses and signs ""My Battle with Terrorism""",6/7/2019,6:00PM,Other - see description,Free,"Fiction,June 2019",Discussion and Signing,"Daniel Nieblas will be promoting his best selling novel, My Battle with Terrorism, during the Fullerton Art Walk, where he will be reading and discussing his story with Half Off Books. 

Set in Anaheim, the Disneyland Resort is under clandestine assault by an ISIS-inspired American citizen. Through a hard-hitting series of interviews and discoveries by a local reporter, the Magic Kingdom becomes a backdrop to the drama of global terrorism.  

My Battle with Terrorism is Nieblas’ debut novel. It has made it to #2 twice on the bestseller list at the landmark Book Soup in Hollywood, and is currently sold in half-a-dozen bookstores across the Greater Los Angeles area. It is also online on Amazon, where it has been described by readers as, “riveting,” “haunting,” and “poetic as all hell.”

Location: Half Off Books, Downtown Fullerton Art Walk, 141 W Wilshire Ave Ste A, Fullerton, CA 92832",https://www.instagram.com/p/BxdE3WtjPfZ/,,Pending Review
912,"Bao Chi discusses and signs ""Vietnam Bao Chi: Warriors of Word and Film""",6/9/2019,2:00 PM,Barnes &amp; Noble - Burbank,Free,"June 2019,Nonfiction,History",Discussion and Signing,"Come see Bao Chi talk about ""Vietnam Bao Chi: Warriors of Word and Film"" at Barnes & Noble Burbank. This book brings together interviews with 35 combat correspondents who reported on the Vietnam War.",https://stores.barnesandnoble.com/event/9780062030332-0,https://prodimage.images-bn.com/pimages/9781612006871_p0_v3_s600x595.jpg,Pending Review
918,"Teri Turner discusses and signs ""No Crumbs Left""",6/9/2019,5:00 PM,Barnes &amp; Noble - The Grove,Purchase Required,"June 2019,Cooking",Discussion and Signing,"Teri Turner will discuss ""No Crumbs Left: Whole30 Endorsed, Recipes for Everyday Food Made Marvelous"" at Barnes & Noble at the Grove. This cookbook is written by a well-known food blogger and Whole30 community member who is answering the question: what do you eat when Whole30 is over?",https://stores.barnesandnoble.com/event/9780062004848-0,https://prodimage.images-bn.com/pimages/9781328557476_p0_v4_s600x595.jpg,Pending Review
972,Roar Shack Reading: Gathering Sky,6/9/2019,4:00 PM,Other - see description,Free,"June 2019,All Genres",Reading,"Rachael Warecki, Marnie Goodfriend, Janet Clare, Patrick O’Neil, Cynthia Prochaska and Debora Kaya read their work as a part of ""Gathering Sky,"" part of the Roar Shack Reading series by 826LA. Come down to the Echo Park Time Travel Mart for a summer show of LA's literary talent.

Location: Echo Park Time Travel Mart, 1714 W Sunset Blvd, Los Angeles, California 90026",https://www.facebook.com/events/323794901840743/,,Pending Review
950,"Jill Liberman and Star Sean Kanan celebrate ""Success Factor X""",6/10/2019,7:00 PM,Barnes &amp; Noble - The Grove,Purchase Required,"June 2019,Healing | Self-Help | Motivational",Discussion and Signing,"If you enjoy hearing about how others have become successful, check out Jill Liberman and Star Sean Kanan with ""Success Factor X"" at Barnes & Noble at the Grove. This book investigates the common ground between some of the most notable leaders to uncover why some people are successful and others aren't.",https://stores.barnesandnoble.com/event/9780062020041-0,https://prodimage.images-bn.com/pimages/9781462136070_p0_v1_s600x595.jpg,Pending Review
951,"Dr. Nancy Lee discusses and signs ""Don't Sleep With Him Yet""",6/11/2019,7:00 PM,Barnes &amp; Noble - The Grove,Free,"June 2019,Healing | Self-Help | Motivational",Discussion and Signing,"Join Dr. Nancy Lee at Barnes & Noble at the Grove for a discussion and signing of ""Don't Sleep With Him Yet: A Badass Guide to Dating in 10 Empowering Steps."" This book is written by a clinical psychologist who is uncovering why we get our hearts broken and fumble through casual relationships.",https://stores.barnesandnoble.com/event/9780062030237-0,https://prodimage.images-bn.com/pimages/9781545651766_p0_v1_s600x595.jpg,Pending Review
939,"Sherry Richert Belul presents ""Say It Now""",6/14/2019,7:00 PM,Barnes &amp; Noble - Burbank,Free,"June 2019,Healing | Self-Help | Motivational",Discussion and Signing,"Barnes & Noble Burbank presents Sherry Richert Belul to present ""Say It Now: 33 Ways To Say I LOVE YOU."" This activity book is perfect for anyone looking for creative ways to show affection to the most important people in life.",https://stores.barnesandnoble.com/event/9780062030333-0,https://prodimage.images-bn.com/pimages/9781642500356_p0_v2_s600x595.jpg,Pending Review
973,Book to Action: Author Ingrid Rojas Contreras,6/15/2019,3:15PM,Other - see description,Free,"Historical Fiction,June 2019",Discussion and Signing,"As part of Studio City Library's Book to Action series of programming, author Ingrid Rojas Contreras will discuss her debut novel Fruit of the Drunken Tree on Saturday, June 15 at 3:15 p.m. She will then be joined by Jonathan Fein Proaño of the International Rescue Committee and Anahita Panahi of the We Are All America campaign to discuss immigration and the refugee landscape. The panel will be moderated by Madeleine Ildefonso of the Los Angeles Public Library’s New Americans Initiative.

After the discussion, Rojas Contreras will sign copies of her book. Free copies of the book will be available, as supplies last, starting at the launch event on June 6 at 6:30 p.m. 

Refreshments will be provided by the Friends of the Studio City Library. All are welcome at this event. 

Studio City Library. 12511 Moorpark Street. Studio City, CA 91604. 818-755-7873. For ADA accommodations, please call (213) 228-7430 at least 72 hours prior to the event.

About the Author:
Ingrid Rojas Contreras was born and raised in Bogotá, Colombia. Her essays and short stories have appeared in the Los Angeles Review of Books, Electric Literature, Guernica, Huffington Post, and more. She has received fellowships and awards from The Missouri Review, Bread Loaf Writer’s Conference, VONA, Hedgebrook, The Camargo Foundation, Djerassi Resident Artists Program, and the National Association of Latino Arts and Cultures. She is the book columnist for KQED Arts, the Bay Area’s NPR affiliate. 

Location: Studio City Branch Library, 12511 Moorpark St, Studio City, CA 91604",https://www.lapl.org/whats-on/events/book-action-author-event-ingrid-rojas-contreras,,Pending Review
923,"Graphic Novel Book Club reads ""The Prince and the Dressmaker""",6/17/2019,7:30 PM,Last Bookstore,Purchase Required,"June 2019,Graphic Novels",Book Club,"From the caves at Lascaux to the VR booths at Comic Con, we have always told stories with pictures. Graphic novels continue that human tradition in a surprising variety of styles and in every genre imaginable. This book club will read the latest books, though maybe not too many featuring crime fighters or mutants. We’re led by Jake Mumm, one of the founders of Comic Arts Los Angeles.

At this meeting, the Graphic Novel book club will read Jen Wang’s ""The Prince and the Dressmaker.""",http://lastbookstorela.com/events/graphic-novel-book-club-with-jake-mumm-3/,http://lastbookstorela.com/wp-content/uploads/2019/04/prince-723x1024.jpg,Pending Review
952,"Girls Night in LA Book Club reads ""From the Corner of the Oval: A Memoir""",6/17/2019,6:30 PM,Last Bookstore,Purchase Required,"June 2019,Memoir",Book Club,"For the month of June, Girls’ Night In (GNI) is reading ""From the Corner of the Oval: A Memoir"" by Beck Dorey-Stein. Join GNI Reads LA for an hour-long book discussion. Ticket price includes GNI swag, snacks and drinks, new friends and a good time.",http://lastbookstorela.com/events/girls-night-in-la-book-club-from-the-corner-of-the-oval/,,Pending Review
924,"True Crime Book Club reads ""The Man From the Train""",6/18/2019,7:30 PM,Last Bookstore,Purchase Required,"June 2019,Mystery | Crime | Horror | Thriller",Book Club,"As the great Tori Telfer says, being into True Crime is like having a taste for cilantro. Some folks don’t get it, but some do: you know who you are.

At this meeting, the club will read ""The Man From the Train"" by Rachel McCarthy James and Bill James.",http://lastbookstorela.com/events/true-crime-tuesdays-book-club-with-james-t-bartlett/,http://lastbookstorela.com/wp-content/uploads/2019/04/manfromthetrain-696x1024.jpg,Pending Review
929,"Elaine Welteroth discusses ""More Than Enough""",6/20/2019,7:00 PM,Other - see description,Free,"June 2019,Underrepresented Voices,Memoir,Healing | Self-Help | Motivational",Book Launch,"Come see Elaine Welteroth as she discusses her new memoir ""More Than Enough"" at the California African American Museum with PEN America. From the youngest person ever appointed editor-in-chief of Teen Vogue and the first African American ever to hold the post of beauty and health director at a Condé Nast publication, this book discusses her personal experiences as a barrier breaker and advocates for next-gen trailblazers to know they are #morethanenough.

Location: California African American Museum, 600 State Dr., Los Angeles, CA 90037",https://pen.org/event/summer-salons-elaine-welteroth/,,Pending Review
975,Influx Collective Queer Poetry Reading,6/22/2019,8:00 PM,Other - see description,Free,"June 2019,LGBTQ+,Poetry",Reading,"At Influx Collectiv, we organize a reading series at various locations throughout Los Angeles in order to promote the voices of queer writers. Founded in 2018 by Catherine Chen and Cori Bratby-Rudd, Influx Collectiv is a LA based queer reading series. We host events that promote the voices of queer writers located in the area. 

Location: Poetic Research Bureau , 951 Chung King Rd, Los Angeles, CA 90012",https://www.influxcollectiv.org/,,Pending Review
913,PEN America presents the 2019 Emerging Voices Fellows,6/23/2019,5:00 PM,Skylight Books,Free,"All Genres,June 2019",Discussion,"Fellows, alumni, and mentors will be in conversation on the 2020 application cycle. The evening will include summer cocktails, short readings, a fellowship overview, and audience Q&A. Featuring Judy Choi, Anthony Hoang, Fajer Alexander Khansa, T.K. Lê, Dare Williams, and Fellowship Manager Amanda Fletcher.",https://www.skylightbooks.com/event/pen-emerging-voices-meet-and-greet,,Pending Review
925,"Horror Book Club reads ""Severance""",6/23/2019,9:30 PM,Last Bookstore,Purchase Required,"June 2019,Mystery | Crime | Horror | Thriller",Book Club,"This horror book club meets after hours in the center of our labyrinth, warmed only by the flickering flames of a haunted chandelier we found in Uncle Vincent’s attic. Bad things happen almost never.

At this meeting, the club will read Ling Ma's ""Severance.""",http://lastbookstorela.com/events/the-thing-in-the-labyrinth-a-horror-book-club-with-kathryn-e-mcgee/,http://lastbookstorela.com/wp-content/uploads/2019/04/severance-667x1024.jpg,Pending Review
971,Homo-centric Reading Series,6/23/2019,6:00 PM,Other - see description,Free,"June 2019,LGBTQ+,All Genres",Reading,"If you enjoy supporting LGBTQ+ writers, check out the Homo-centric reading series at ACE/121 Gallery.

Location: ACE/121 Gallery, 121 N. Kenwood, Glendale, California 91206",https://www.facebook.com/events/2774201642621221/?notif_t=event_friend_going&notif_id=1559526184841233,,Pending Review
926,"Spiritual Classics Book Club reads ""The Interior Castle""",6/24/2019,7:30 PM,Last Bookstore,Purchase Required,"June 2019,Healing | Self-Help | Motivational",Book Club,"At some point, everyone has to wrestle with personal belief and one’s orientation to the universe. Whether addressing origins or destiny, what lies inside or what’s “out there” – it’s a good bet that those who’ve come before have something to offer. In this club, we dive into the best wisdom we can find, across faith traditions, guided by author & journalist Nick Shindo Street.

At this meeting, the club will read Teresa of Avila's ""The Interior Castle""",http://lastbookstorela.com/events/spiritual-classics-book-club/,http://lastbookstorela.com/wp-content/uploads/2019/06/interior.jpg,Pending Review
927,"Gothic Book Club reads ""The Turn of the Screw""",6/25/2019,9:30 PM,Last Bookstore,Purchase Required,"June 2019,Speculative Fiction",Book Club,"Ye olde Gothic worms its way into many genres and art forms, from horror to architecture to shoes. The books – old and new – have a lasting allure. Everlasting.

At this meeting, the club will read Henry James’ ""The Turn of the Screw.""",http://lastbookstorela.com/events/gothic-book-club-with-john-palisano-2/,http://lastbookstorela.com/wp-content/uploads/2019/04/turnofthescrew.jpeg,Pending Review
970,Poets & Writers' Los Angeles Connecting Cultures Reading,6/28/2019,7:30 PM,Beyond Baroque,Free,"June 2019,All Genres,Underrepresented Voices",Reading,"Join us for the ninth annual Los Angeles Connecting Cultures Reading! Since 1989, Poets & Writers’ Readings & Workshops program has sponsored thousands of literary events in California, connecting diverse writers with diverse audiences. We will celebrate on June 28 at Beyond Baroque Literary Arts Center with a few of our partner organizations:

Hillsides School
Nisei Writers Workshop-Little Tokyo Library
QueerWise-Spoken Interludes
Tia Chucha's Centro Cultural
World Stage Press",https://www.facebook.com/events/2255411264772360/,,Pending Review